bitfinex/quotes_SOLUSD_20250315
["timestamp","ask_amount","ask_price","bid_price","bid_amount"]
[1742027446444,13.48061125,132.97,132.96,6.51]
[1742027447449,21.00101125,132.97,132.96,6.51]
[1742027448943,22.57151125,132.97,132.96,0.0001]
[1742027450128,28.98621125,132.97,132.96,0.0001]
[1742027450541,47.63586011,132.97,132.96,0.0001]
[1742027450849,47.63586011,132.97,132.95,0.0001]
[1742027451153,13.48061125,132.96,132.95,0.0001]
[1742027451731,39.65126011,132.96,132.95,0.0001]
[1742027455845,21.00161125,132.96,132.95,0.0001]
[1742027467340,21.03161125,132.96,132.95,0.0001]
[1742027472562,39.68126011,132.96,132.95,0.0001]
[1742027476672,21.03161125,132.96,132.95,0.0001]
[1742027478368,13.51061125,132.96,132.95,0.0001]
[1742027479969,21.03161125,132.96,132.95,0.0001]
[1742027481970,39.68126011,132.96,132.95,0.0001]
[1742027482370,41.59088325,132.96,132.95,0.0001]
[1742027482572,42.09088325,132.96,132.95,0.0001]
[1742027483451,41.59088325,132.96,132.95,0.0001]
[1742027483871,41.30656011,132.96,132.95,0.0001]
[1742027484473,39.68126011,132.96,132.95,0.0001]
[1742027489680,43.42551193,132.96,132.95,0.0001]
[1742027492676,13.48061125,132.95,132.94,0.0431]
[1742027494187,21.00221125,132.95,132.94,0.0431]
[1742027500873,21.00221125,132.95,132.91,1.3352]
[1742027503595,21.00221125,132.95,132.94,0.03]
[1742027516025,21.06521125,132.95,132.94,0.03]
[1742027521608,7.5846,132.95,132.94,0.03]
[1742027522626,20.063,132.95,132.94,0.03]
[1742027522998,0.063,132.95,132.94,0.03]
[1742027525728,0.063,132.95,132.94,13.79493439]
[1742027526525,0.063,132.95,132.94,0.03]
[1742027528535,0.063,132.95,132.94,13.51061125]
[1742027528908,0.063,132.95,132.94,13.79493439]
[1742027531745,0.063,132.95,132.94,21.31703439]
[1742027531946,0.063,132.95,132.94,96.82773439]
[1742027532117,0.063,132.95,132.94,121.56878325]
[1742027540049,0.0001,132.95,132.94,123.1965218]
[1742027541744,0.03,132.96,132.95,27.398172]
[1742027541931,0.03,132.96,132.95,40.87878325]
[1742027544752,0.03,132.96,132.95,116.38948325]
[1742027545259,0.03,132.96,132.95,117.51709639]
[1742027548044,0.03,132.96,132.95,118.01709639]
[1742027549451,0.03,132.96,132.95,117.51709639]
[1742027549743,0.03,132.96,132.95,118.01709639]
[1742027550548,0.03,132.96,132.95,117.51709639]
[1742027555455,0.03,132.96,132.95,118.01709639]
[1742027556447,0.03,132.96,132.95,117.51709639]
[1742027556640,0.03,132.96,132.95,118.01709639]
[1742027557958,0.03,132.96,132.95,117.51709639]
[1742027560264,0.03,132.96,132.95,118.01709639]
[1742027560447,0.03,132.96,132.95,117.51709639]
[1742027560630,0.03,132.96,132.95,118.01709639]
[1742027562960,0.03,132.96,132.95,117.51709639]
[1742027563259,0.03,132.96,132.95,118.01709639]
[1742027566260,0.03,132.96,132.95,117.51709639]
[1742027566463,0.03,132.96,132.95,118.01709639]
[1742027567468,0.03,132.96,132.95,117.51709639]
[1742027567642,0.03,132.96,132.95,118.01709639]
[1742027568665,0.03,132.96,132.95,117.51709639]
[1742027568869,0.03,132.96,132.95,118.01709639]
[1742027572163,0.03,133.0,132.99,13.76493439]
[1742027572355,0.03,133.0,132.99,95.75563439]
[1742027574171,0.03,133.0,132.99,103.27493439]
[1742027579968,0.03,133.0,132.99,75.5107]
[1742027580167,0.03,133.0,132.99,82.27502314]
[1742027580351,0.03,133.0,132.99,89.79432314]
[1742027580552,0.03,133.0,132.99,82.27502314]
[1742027581152,0.03,133.0,132.99,81.9907]
[1742027581452,0.03,133.0,132.97,96.79593439]
[1742027581773,0.03,133.0,132.98,6.48]
[1742027584173,6.4799,133.0,132.99,6.48]
[1742027589357,13.9986,133.0,132.97,75.5107]
[1742027589569,27.47921125,133.0,132.98,6.48]
[1742027590068,13.9986,133.0,132.98,6.48]
[1742027590465,27.47921125,133.0,132.98,6.48]
[1742027591578,27.47921125,133.0,132.96,0.03]
[1742027591880,13.48061125,132.99,132.97,6.48]
[1742027592459,13.48061125,132.99,132.96,0.03]
[1742027592654,1.5621,132.97,132.96,0.03]
[1742027592854,15.04271125,132.97,132.96,0.03]
[1742027593084,15.04271125,132.97,132.96,6.51]
[1742027593673,22.56311125,132.97,132.96,6.51]
[1742027594677,9.0825,132.97,132.96,6.51]
[1742027595664,22.56311125,132.97,132.96,6.51]
[1742027598069,9.0825,132.97,132.96,6.51]
[1742027599591,22.56311125,132.97,132.96,6.51]
[1742027599990,22.56311125,132.97,132.96,0.03]
[1742027600164,28.65641125,132.97,132.96,6.51]
[1742027601486,28.65641125,132.97,132.96,0.03]
[1742027606299,7.6554,132.97,132.96,0.03]
[1742027606588,1.5621,132.97,132.96,0.03]
[1742027607088,13.48061125,132.99,132.96,0.03]
[1742027607272,6.1233,133.0,132.96,0.03]
[1742027607273,19.60391125,133.0,132.96,0.03]
[1742027607478,13.48061125,132.99,132.96,0.03]
[1742027607794,19.60391125,133.0,132.96,0.03]
[1742027607973,13.48061125,132.99,132.96,0.03]
[1742027608273,21.00001125,132.99,132.96,0.03]
[1742027610088,13.48061125,132.98,132.96,0.03]
[1742027610396,7.5204,132.97,132.96,0.03]
[1742027610693,21.00101125,132.97,132.96,0.03]
[1742027611787,22.62891125,132.97,132.96,0.03]
[1742027621598,13.48061125,132.97,132.96,0.03]
[1742027622009,13.54361125,132.97,132.96,0.03]
[1742027622603,21.06401125,132.97,132.96,0.03]
[1742027625095,13.54361125,132.97,132.96,0.03]
[1742027625408,21.06401125,132.97,132.96,0.03]
[1742027627290,7.5834,132.97,132.96,0.03]
[1742027628403,21.06401125,132.97,132.96,0.03]
[1742027630420,13.54361125,132.97,132.96,0.03]
[1742027630598,0.063,132.97,132.96,0.03]
[1742027631127,20.063,132.97,132.96,0.03]
[1742027637520,0.063,132.97,132.96,0.03]
[1742027638197,0.063,132.97,132.96,13.51061125]
[1742027638697,0.063,132.97,132.96,13.79493439]
[1742027638915,0.063,132.97,132.96,89.30563439]
[1742027640329,0.063,132.97,132.96,96.82663439]
[1742027640829,0.063,132.97,132.96,89.30563439]
[1742027641007,0.063,132.97,132.96,75.82502314]
[1742027641205,0.063,132.97,132.96,82.30502314]
[1742027642820,0.063,132.97,132.96,82.0207]
[1742027643210,0.063,132.97,132.96,89.5417]
[1742027644006,0.063,132.97,132.96,103.30663439]
[1742027651630,0.0001,132.97,132.96,123.58401497]
[1742027651816,0.03,133.01,132.99,18.933972]
[1742027652015,0.03,133.01,133.0,87.46425938]
[1742027652934,0.03,133.01,133.0,94.98295938]
[1742027653129,0.03,133.01,133.0,41.06051438]
[1742027654012,0.03,133.03,133.02,18.933972]
[1742027654208,0.03,133.03,133.02,114.40528325]
[1742027655024,0.03,133.03,133.02,121.92288325]
[1742027657332,0.03,133.03,133.02,123.04980779]
[1742027658015,0.03,133.09,133.05,18.933972]
[1742027658221,0.03,133.09,133.05,32.41458325]
[1742027659321,0.03,133.09,133.05,39.93048325]
[1742027660226,0.0001,133.06,133.05,39.93048325]
[1742027660428,0.0001,133.06,133.05,42.03348325]
[1742027661524,0.03,133.09,133.08,0.28432314]
[1742027661723,0.03,133.09,133.08,95.75563439]
[1742027662118,0.03,133.09,133.08,115.53187833]
[1742027662319,0.03,133.09,133.08,123.04607833]
[1742027662830,0.03,133.09,133.08,121.91948325]
[1742027664618,0.03,133.09,133.08,123.046066]
[1742027666526,0.03,133.09,133.08,114.40528325]
[1742027669140,0.03,133.09,133.08,107.92528325]
[1742027669535,0.03,133.09,133.08,20.22493439]
[1742027670042,0.03,133.09,133.08,27.73913439]
[1742027670545,0.03,133.09,133.08,6.74432314]
[1742027672527,0.03,133.09,133.08,6.46]
[1742027672722,0.03,133.09,133.06,75.79502314]
[1742027672931,0.03,133.09,133.07,6.46]
[1742027673953,0.03,133.09,133.08,6.46]
[1742027674261,0.03,133.09,133.06,96.79083439]
[1742027674437,0.03,133.09,133.07,6.46]
[1742027675245,0.03,133.09,133.07,27.45511125]
[1742027676156,0.03,133.09,133.08,0.28432314]
[1742027676944,0.03,133.09,133.08,13.76493439]
[1742027677862,0.03,133.09,133.08,21.27913439]
[1742027678959,0.03,133.09,133.08,7.79852314]
[1742027681258,0.03,133.09,133.07,81.9707]
[1742027682052,0.03,133.09,133.07,95.45131125]
[1742027682359,0.03,133.09,133.07,88.99131125]
[1742027682540,0.03,133.09,133.08,6.46]
[1742027683558,0.03,133.09,133.08,6.74432314]
[1742027683744,0.03,133.09,133.08,14.25852314]
[1742027684063,0.03,133.09,133.08,46.38878325]
[1742027685537,0.03,133.09,133.08,121.89948325]
[1742027685942,0.03,133.09,133.08,123.02599206]
[1742027686952,0.0001,133.09,133.08,123.02599206]
[1742027688368,0.0001,133.09,133.08,123.02612255]
[1742027688664,0.0001,133.09,133.08,123.52612255]
[1742027689365,0.0001,133.09,133.08,331.34612255]
[1742027689575,0.0001,133.09,133.08,330.21948325]
[1742027689774,0.0001,133.09,133.08,329.71948325]
[1742027690358,0.0001,133.09,133.08,641.71948325]
[1742027691274,0.0001,133.1,133.08,641.71948325]
[1742027691576,0.0001,133.1,133.09,33.54103371]
[1742027692356,0.0001,133.1,133.09,41.05473371]
[1742027693582,0.063,133.12,133.11,94.381572]
[1742027693753,0.063,133.12,133.11,108.98838343]
[1742027694251,0.03,133.13,133.12,26.445972]
[1742027694462,0.03,133.13,133.12,39.92658325]
[1742027695769,0.03,133.13,133.12,41.05269586]
[1742027696268,0.03,133.13,133.12,39.92658325]
[1742027698854,0.03,133.13,133.12,41.05276933]
[1742027700063,0.03,133.13,133.12,116.50036933]
[1742027702180,0.03,133.13,133.12,115.37418325]
[1742027704698,0.03,133.13,133.12,121.83418325]
[1742027706062,0.03,133.13,133.12,75.79492314]
[1742027706262,0.03,133.13,133.12,82.25492314]
[1742027706574,0.03,133.13,133.12,6.523]
[1742027706759,0.03,133.13,133.12,0.063]
[1742027707080,6.6574,133.13,133.12,6.523]
[1742027710031,14.1688,133.13,133.12,0.063]
[1742027710185,14.1688,133.13,133.12,6.523]
[1742027711195,27.64941125,133.13,133.12,0.063]
[1742027711487,29.19141125,133.13,133.12,0.063]
[1742027711899,29.19141125,133.13,133.08,0.063]
[1742027712072,1.542,133.12,133.11,6.46]
[1742027712266,15.02261125,133.12,133.11,6.46]
[1742027712465,15.02261125,133.12,133.08,0.063]
[1742027712772,20.99371125,133.1,133.08,0.063]
[1742027713180,13.48061125,133.1,133.08,0.063]
[1742027714688,20.99381125,133.1,133.08,0.063]
[1742027716087,13.48061125,133.09,133.08,0.063]
[1742027718197,20.99431125,133.09,133.08,0.063]
[1742027724598,27.36871125,133.09,133.08,0.063]
[1742027724804,27.36871125,133.09,133.08,6.523]
[1742027726203,29.02041125,133.09,133.08,0.063]
[1742027743611,29.02041125,133.09,133.08,0.0001]
[1742027749512,20.99431125,133.09,133.08,0.0001]
[1742027762217,33.48061125,133.07,133.06,0.063]
[1742027762824,40.99541125,133.07,133.06,0.063]
[1742027763816,33.48061125,133.07,133.06,0.063]
[1742027764017,13.48061125,133.08,133.06,0.063]
[1742027764221,13.51061125,133.09,133.06,0.063]
[1742027764921,21.02441125,133.09,133.06,0.063]
[1742027765799,13.48061125,133.08,133.06,0.063]
[1742027766000,33.48061125,133.08,133.06,0.063]
[1742027766321,20.0,133.08,133.06,0.063]
[1742027766504,33.48061125,133.08,133.06,0.063]
[1742027767312,20.0,133.08,133.06,0.063]
[1742027769123,0.03,133.09,133.06,0.063]
[1742027769421,0.03,133.09,133.07,0.14216157]
[1742027769617,0.03,133.09,133.08,13.62277282]
[1742027769809,0.03,133.09,133.08,15.27127282]
[1742027770803,0.03,133.09,133.08,90.71887282]
[1742027771003,0.03,133.09,133.08,123.15168325]
[1742027771407,0.0001,133.09,133.08,123.15168325]
[1742027771925,0.0001,133.09,133.08,124.27820809]
[1742027774028,0.03,133.12,133.09,18.933972]
[1742027774227,0.03,133.12,133.11,13.62277282]
[1742027774417,0.03,133.12,133.11,0.14216157]
[1742027774909,0.03,133.12,133.11,7.65466157]
[1742027776905,0.03,133.12,133.11,26.446472]
[1742027779340,0.03,133.12,133.11,101.894072]
[1742027781948,0.0001,133.12,133.11,101.894072]
[1742027782113,0.03,133.14,133.13,0.14216157]
[1742027782318,0.0001,133.14,133.13,0.14216157]
[1742027782519,0.0001,133.14,133.13,7.79572314]
[1742027784035,0.03,133.15,133.14,0.14216157]
[1742027784036,0.0001,133.15,133.14,0.14216157]
[1742027784620,0.0001,133.15,133.14,7.65296157]
[1742027788157,0.0001,133.15,133.14,83.10056157]
[1742027793136,0.0001,133.15,133.14,101.75021043]
[1742027795950,13.48071125,133.15,133.14,82.9584]
[1742027796754,0.0001,133.15,133.14,82.9584]
[1742027798260,0.0001,133.15,133.14,101.75021043]
[1742027800259,0.0001,133.15,133.14,101.892372]
[1742027800959,13.48071125,133.15,133.14,89.4184]
[1742027801329,0.0001,133.15,133.14,89.4184]
[1742027802655,6.537,133.21,133.15,0.28432314]
[1742027802832,13.48061125,133.2,133.15,94.381572]
[1742027804357,13.48061125,133.19,133.17,18.79181043]
[1742027806674,13.48061125,133.19,133.18,7.5086]
[1742027807344,6.537,133.21,133.18,7.5086]
[1742027807539,0.03,133.23,133.21,0.14216157]
[1742027807754,0.03,133.23,133.22,18.79181043]
[1742027808748,0.03,133.23,133.22,26.29811043]
[1742027810562,0.03,133.23,133.21,82.9543]
[1742027810762,0.03,133.23,133.21,82.9544]
[1742027811558,0.03,133.23,133.21,75.4476]
[1742027812465,0.03,133.23,133.21,82.9545]
[1742027813544,0.03,133.23,133.21,96.43511125]
[1742027814270,0.03,133.23,133.22,18.79181043]
[1742027815564,0.03,133.23,133.21,96.43511125]
[1742027816063,0.03,133.23,133.21,75.4476]
[1742027817165,0.03,133.23,133.22,6.46]
[1742027817940,0.03,133.23,133.22,46.23872168]
[1742027819864,0.03,133.23,133.22,46.38088325]
[1742027822164,0.03,133.23,133.22,122.95395492]
[1742027822165,0.0001,133.23,133.22,122.95395492]
[1742027822346,0.0001,133.23,133.22,121.82848325]
[1742027822950,0.0001,133.23,133.22,122.95391683]
[1742027827371,0.0001,133.23,133.22,121.82848325]
[1742027828087,0.0001,133.23,133.22,115.36848325]
[1742027828258,0.0001,133.23,133.22,121.82848325]
[1742027829780,0.0001,133.23,133.22,122.95401271]
[1742027835487,0.0001,133.23,133.22,123.01701271]
[1742027836992,0.0001,133.23,133.22,121.89148325]
[1742027839884,0.0001,133.23,133.22,94.30241043]
[1742027840095,0.0001,133.23,133.22,114.38518325]
[1742027840888,0.0001,133.23,133.22,121.89148325]
[1742027848880,0.0001,133.23,133.22,114.38518325]
[1742027849192,0.0001,133.23,133.22,121.89148325]
[1742027850274,0.0001,133.23,133.22,108.26871043]
[1742027850596,0.0001,133.23,133.22,81.9706]
[1742027852622,0.0001,133.23,133.22,27.50991125]
[1742027854994,0.0001,133.23,133.22,6.523]
[1742027860817,0.0001,133.23,133.22,6.523]
[1742027861113,0.0001,133.23,133.22,14.0293]
[1742027866006,0.0001,133.23,133.22,6.523]
[1742027866615,0.0001,133.23,133.22,46.30172168]
[1742027867991,0.0001,133.23,133.22,25.31481043]
[1742027868194,0.0001,133.23,133.22,32.82111043]
[1742027868987,0.0001,133.23,133.22,6.523]
[1742027871424,0.0001,133.23,133.22,14.0293]
[1742027873922,0.0001,133.23,133.22,6.523]
[1742027874221,0.0001,133.23,133.22,14.0293]
[1742027875996,0.0001,133.23,133.22,6.523]
[1742027882223,0.0001,133.23,133.22,14.0293]
[1742027885230,0.0001,133.23,133.22,32.82111043]
[1742027885605,0.0001,133.23,133.22,46.44388325]
[1742027885809,0.0001,133.23,133.22,121.89148325]
[1742027890034,0.0001,133.23,133.22,121.74932168]
[1742027890619,0.0001,133.23,133.22,108.26871043]
[1742027890820,0.0001,133.23,133.22,121.74932168]
[1742027892251,0.0001,133.23,133.22,121.89148325]
[1742027894046,0.0001,133.23,133.22,123.0169842]
[1742027894422,0.0001,133.24,133.23,18.933972]
[1742027894741,0.0001,133.24,133.23,32.41458325]
[1742027895135,0.0001,133.24,133.23,107.86218325]
[1742027895640,0.0001,133.24,133.23,108.98742411]
[1742027896543,0.0001,133.24,133.23,116.49322411]
[1742027899048,0.03,133.26,133.25,107.86208325]
[1742027899343,0.0001,133.26,133.25,108.9872192]
[1742027900642,0.0001,133.26,133.25,116.4918192]
[1742027903847,0.0001,133.26,133.25,115.36668325]
[1742027910359,0.0001,133.27,133.26,18.933972]
[1742027910536,0.0001,133.27,133.26,33.53949401]
[1742027911139,0.0001,133.27,133.26,41.04359401]
[1742027914262,0.0001,133.27,133.26,116.49109401]
[1742027916463,0.0001,133.27,133.26,428.49109401]
[1742027916762,0.0001,133.27,133.26,427.36618325]
[1742027917655,0.0001,133.27,133.26,115.36618325]
[1742027922251,0.0001,133.27,133.26,121.80618325]
[1742027922453,0.0001,133.27,133.26,115.36618325]
[1742027922653,0.0001,133.27,133.26,94.23931043]
[1742027922867,0.0001,133.27,133.26,6.44]
[1742027934190,21.01311125,133.29,133.27,1.9999]
[1742027936587,13.51061125,133.29,133.27,1.9999]
[1742027936980,21.01301125,133.29,133.27,1.9999]
[1742027939692,13.48061125,133.28,133.27,1.9999]
[1742027940000,28.82271125,133.28,133.27,0.3333]
[1742027940292,20.0,133.26,133.25,0.063]
[1742027940596,33.48061125,133.26,133.25,0.063]
[1742027942000,40.98471125,133.26,133.25,0.063]
[1742027991321,0.03,133.27,133.25,0.063]
[1742027991627,13.51061125,133.27,133.25,0.063]
[1742027992321,0.03,133.27,133.26,6.46]
[1742027993326,0.03,133.27,133.26,13.9641]
[1742027997204,0.03,133.27,133.26,39.20491043]
[1742027997411,0.03,133.27,133.26,52.82768325]
[1742027999623,0.03,133.27,133.26,128.27518325]
[1742028012042,0.03,133.27,133.26,108.345572]
[1742028024044,0.0001,133.27,133.26,121.82618325]
[1742028024548,0.0001,133.27,133.26,128.14988325]
[1742028026949,0.0001,133.27,133.26,108.345572]
[1742028028856,0.0001,133.27,133.26,6.44]
[1742028030245,0.0001,133.27,133.26,46.35868325]
[1742028033735,0.0001,133.27,133.26,121.80618325]
[1742028036538,0.0001,133.27,133.26,123.32628325]
[1742028038554,0.03,133.29,133.28,18.64964886]
[1742028038742,0.03,133.29,133.28,107.86198325]
[1742028039240,0.734941,133.33,133.31,18.933972]
[1742028039446,0.734941,133.33,133.32,25.23181043]
[1742028040956,0.734941,133.33,133.32,38.85458325]
[1742028041659,0.734941,133.33,133.32,46.35528325]
[1742028043248,0.734941,133.33,133.32,121.80268325]
[1742028043763,0.5,133.42,133.4,18.933972]
[1742028043944,0.5,133.42,133.41,207.62216157]
[1742028044150,0.5,133.42,133.41,25.35181043]
[1742028045364,0.5,133.42,133.41,38.97458325]
[1742028045768,0.5,133.42,133.41,46.47018325]
[1742028047166,0.53,133.42,133.41,46.47018325]
[1742028049167,0.53,133.42,133.41,121.91758325]
[1742028049349,0.53,133.42,133.41,108.436972]
[1742028049670,0.53,133.42,133.41,121.91758325]
[1742028053073,0.53,133.42,133.41,108.29481043]
[1742028053375,0.53,133.42,133.41,121.77542168]
[1742028055475,0.53,133.42,133.41,108.29481043]
[1742028057975,0.53,133.42,133.41,121.77542168]
[1742028058275,0.0001,133.42,133.41,121.91758325]
[1742028058880,0.0001,133.42,133.41,121.96058325]
[1742028060879,0.0001,133.42,133.41,108.499972]
[1742028061062,0.0001,133.42,133.41,0.063]
[1742028061463,13.48071125,133.42,133.41,6.623]
[1742028061664,0.0001,133.42,133.41,6.623]
[1742028063288,19.33121125,133.44,133.41,6.623]
[1742028063663,20.0,133.46,133.41,14.1186]
[1742028063865,13.48061125,133.45,133.41,14.1186]
[1742028064076,13.48061125,133.44,133.41,6.623]
[1742028064366,13.48061125,133.43,133.41,6.623]
[1742028066565,6.3173,133.44,133.41,6.623]
[1742028066771,13.48061125,133.43,133.41,6.623]
[1742028069389,19.79791125,133.44,133.41,14.1185]
[1742028070585,19.79791125,133.44,133.41,6.623]
[1742028070773,19.82791125,133.44,133.41,6.623]
[1742028073286,19.82791125,133.44,133.41,14.1185]
[1742028074492,19.82791125,133.44,133.41,6.623]
[1742028075791,13.48061125,133.43,133.41,6.623]
[1742028075994,6.3473,133.44,133.41,6.623]
[1742028076174,13.48061125,133.43,133.41,6.623]
[1742028077173,6.3473,133.44,133.41,6.623]
[1742028077373,13.48061125,133.43,133.41,6.623]
[1742028079591,19.82791125,133.44,133.41,6.623]
[1742028079969,13.48061125,133.43,133.41,6.623]
[1742028080798,13.48061125,133.43,133.41,0.063]
[1742028080975,13.48061125,133.42,133.41,0.063]
[1742028081294,13.48061125,133.42,133.41,6.583]
[1742028085801,20.97571125,133.42,133.41,6.583]
[1742028086176,13.48061125,133.42,133.41,6.583]
[1742028094196,7.4946,133.43,133.41,6.583]
[1742028094522,13.48061125,133.42,133.41,6.583]
[1742028095306,7.4946,133.43,133.41,6.583]
[1742028095490,13.48061125,133.42,133.41,6.583]
[1742028096925,7.4946,133.43,133.41,6.583]
[1742028097111,13.48061125,133.42,133.41,6.583]
[1742028100711,0.03,133.44,133.41,6.583]
[1742028100895,13.51061125,133.44,133.41,6.583]
[1742028101422,13.51061125,133.44,133.41,14.0785]
[1742028101612,0.03,133.44,133.41,14.0785]
[1742028102502,13.51061125,133.44,133.42,6.5]
[1742028103417,0.03,133.44,133.42,6.5]
[1742028104021,13.51061125,133.44,133.42,6.5]
[1742028104225,0.03,133.44,133.42,6.5]
[1742028106112,0.03,133.44,133.42,13.9949]
[1742028107906,0.03,133.44,133.42,89.4423]
[1742028109420,13.48061125,133.43,133.42,81.9474]
[1742028109625,13.48061125,133.43,133.42,6.5]
[1742028110504,0.03,133.44,133.42,6.5]
[1742028110705,13.51061125,133.44,133.42,6.5]
[1742028115724,13.51061125,133.44,133.42,13.995]
[1742028116032,13.51061125,133.44,133.42,6.5]
[1742028117628,0.03,133.44,133.42,6.5]
[1742028117810,13.51061125,133.44,133.42,6.5]
[1742028119716,0.03,133.44,133.42,6.5]
[1742028119918,13.51061125,133.44,133.42,6.5]
[1742028124011,0.03,133.44,133.42,13.9951]
[1742028127016,13.51061125,133.44,133.42,6.5]
[1742028127737,13.48061125,133.43,133.42,6.5]
[1742028127933,13.48061125,133.43,133.42,6.44]
[1742028128316,13.48061125,133.43,133.41,0.063]
[1742028128516,33.48061125,133.42,133.41,0.063]
[1742028128735,33.48061125,133.42,133.41,6.503]
[1742028129820,40.97571125,133.42,133.41,6.503]
[1742028130027,40.97571125,133.42,133.41,0.063]
[1742028130354,33.48061125,133.42,133.41,6.503]
[1742028134819,13.48061125,133.42,133.41,6.503]
[1742028137042,7.524,133.44,133.41,6.503]
[1742028137535,13.48061125,133.42,133.41,6.503]
[1742028137734,13.51061125,133.44,133.41,13.9986]
[1742028138126,0.03,133.44,133.41,13.9986]
[1742028138725,13.51061125,133.44,133.41,13.9986]
[1742028141646,13.51061125,133.44,133.41,6.503]
[1742028141844,13.48061125,133.43,133.41,6.503]
[1742028142350,13.48061125,133.42,133.41,6.503]
[1742028142923,7.524,133.44,133.41,6.503]
[1742028143129,13.48061125,133.43,133.41,0.063]
[1742028143331,13.48061125,133.42,133.41,0.063]
[1742028143530,13.48061125,133.42,133.41,6.503]
[1742028145452,13.48061125,133.42,133.41,0.063]
[1742028145634,13.48061125,133.42,133.41,6.503]
[1742028148455,13.48061125,133.42,133.41,0.063]
[1742028148659,13.48061125,133.42,133.41,6.503]
[1742028149158,13.48061125,133.43,133.41,6.503]
[1742028150763,20.97521125,133.43,133.41,6.503]
[1742028150955,13.48061125,133.42,133.41,6.503]
[1742028152245,20.97571125,133.42,133.41,6.503]
[1742028153768,74.89815625,133.42,133.41,6.503]
[1742028155468,74.89815625,133.42,133.41,0.063]
[1742028156247,93.63595625,133.42,133.33,82.2747]
[1742028156452,13.48061125,133.36,133.34,6.44]
[1742028158273,13.48061125,133.38,133.34,6.44]
[1742028158571,13.48061125,133.38,133.34,13.9394]
[1742028158752,20.0,133.39,133.34,13.9394]
[1742028158944,13.48061125,133.38,133.34,13.9394]
[1742028160051,13.48061125,133.37,133.34,13.9394]
[1742028162494,33.48061125,133.39,133.34,46.06966011]
[1742028163699,20.0,133.39,133.35,13.48061125]
[1742028164087,13.48061125,133.4,133.35,13.48061125]
[1742028164402,13.48061125,133.4,133.36,7.4985]
[1742028164591,13.48061125,133.41,133.36,20.97911125]
[1742028165291,33.48061125,133.4,133.36,7.4985]
[1742028165498,7.5241,133.44,133.37,13.48061125]
[1742028165676,13.48061125,133.42,133.38,18.64964886]
[1742028165882,13.48061125,133.42,133.39,6.44]
[1742028167296,13.48061125,133.42,133.39,13.9365]
[1742028167507,20.0,133.42,133.39,13.9365]
[1742028173916,20.0,133.43,133.39,27.41711125]
[1742028174224,0.03,133.44,133.4,32.41458325]
[1742028174817,13.48061125,133.42,133.39,88.1965]
[1742028175025,13.48061125,133.42,133.4,6.44]
[1742028175827,20.03,133.44,133.4,6.44]
[1742028176115,13.48061125,133.43,133.4,6.44]
[1742028178298,0.03,133.42,133.4,6.44]
[1742028180016,13.51061125,133.42,133.4,6.44]
[1742028180719,13.48061125,133.41,133.4,6.44]
[1742028181519,20.97621125,133.41,133.4,6.44]
[1742028183611,13.48061125,133.41,133.4,6.44]
[1742028185310,20.97621125,133.41,133.4,6.44]
[1742028189232,7.4956,133.41,133.4,6.44]
[1742028189430,20.97621125,133.41,133.4,6.44]
[1742028191142,20.97621125,133.41,133.4,6.503]
[1742028191354,21.00621125,133.41,133.4,6.503]
[1742028196359,20.03,133.41,133.4,6.503]
[1742028198271,0.03,133.41,133.4,6.503]
[1742028198470,13.51061125,133.41,133.4,6.503]
[1742028202270,0.03,133.41,133.4,6.503]
[1742028203272,0.03,133.41,133.4,13.9992]